bitfinex-derivatives/quotes_BNBF0:USTF0_20250630
["timestamp","ask_amount","ask_price","bid_price","bid_amount"]
[1751276969213,1.3311593,653.33,652.9,1.1467066]
[1751276969414,1.3311593,653.32,652.9,1.1467066]
[1751276969612,1.3311593,653.31,652.9,1.1467066]
[1751276969816,1.3311593,653.3,652.9,1.1467066]
[1751276970015,1.3311593,653.29,652.9,1.1467066]
[1751276970213,1.3311593,653.28,652.9,1.1467066]
[1751276970414,1.3311593,653.27,652.9,1.1467066]
[1751276970617,1.3311593,653.26,652.92,1.1467066]
[1751276970914,1.3311593,653.25,652.92,1.1467066]
[1751276971116,1.3311593,653.24,652.92,1.1467066]
[1751276971314,1.5291855,653.56,652.82,1.1467066]
[1751276971618,1.3310876,653.55,652.82,1.1467066]
[1751276971816,1.3310876,653.54,652.83,1.1467066]
[1751276972015,1.3310876,653.53,652.83,1.1467066]
[1751276972218,1.3310876,653.52,652.83,1.1467066]
[1751276972415,1.3310876,653.51,652.83,1.1467066]
[1751276972619,1.3310876,653.5,652.83,1.1467066]
[1751276972814,0.26636152,653.7,652.84,1.1467066]
[1751276972815,1.3310876,653.49,652.84,1.1467066]
[1751276973016,1.3310876,653.48,652.85,1.1467066]
[1751276973319,1.3310876,653.47,652.85,1.1467066]
[1751276973519,1.3310876,653.46,652.85,1.1467066]
[1751276973719,1.3310876,653.45,652.83,1.1467066]
[1751276974021,1.5291855,653.59,652.83,1.1467066]
[1751276974022,1.3310876,653.44,652.83,1.1467066]
[1751276974219,1.3310876,653.43,652.84,1.1467066]
[1751276974517,1.3310876,653.42,652.84,1.1467066]
[1751276974717,1.3310876,653.41,652.84,1.1467066]
[1751276974916,1.3310876,653.4,652.73,0.26642882]
[1751276975119,1.3310876,653.39,652.73,0.26642882]
[1751276975314,1.3310876,653.38,652.73,0.26642882]
[1751276975516,1.3310876,653.37,652.73,0.26642882]
[1751276975716,1.3310876,653.36,652.73,0.26642882]
[1751276976015,1.3310876,653.35,652.73,0.26642882]
[1751276976220,1.3310876,653.34,652.73,0.26642882]
[1751276976517,1.3310876,653.33,652.73,0.26642882]
[1751276976717,1.3310876,653.32,652.73,0.26642882]
[1751276976921,1.3310876,653.31,652.73,0.26642882]
[1751276977119,1.3310876,653.3,652.73,0.26642882]
[1751276977317,1.3310876,653.29,652.73,0.26642882]
[1751276977624,1.3310876,653.28,652.73,0.26642882]
[1751276977918,1.3310876,653.27,652.73,0.26642882]
[1751276978119,1.3310876,653.26,652.73,0.26642882]
[1751276978317,0.26636152,653.7,652.73,0.26642882]
[1751276978519,1.3301553,653.69,652.73,0.26642882]
[1751276978718,1.3301553,653.68,652.73,0.26642882]
[1751276978923,1.3301553,653.67,652.73,0.26642882]
[1751276979223,1.3301553,653.66,652.73,0.26642882]
[1751276979418,1.3301553,653.65,652.73,0.26642882]
[1751276979619,1.3301553,653.64,652.73,0.26642882]
[1751276979818,1.3301553,653.63,652.73,0.26642882]
[1751276980018,1.5291855,653.59,652.73,0.26642882]
[1751276980220,1.3301553,653.58,652.73,0.26642882]
[1751276980418,1.3301553,653.57,652.73,0.26642882]
[1751276980622,1.5291855,653.55,652.73,0.26642882]
[1751276980820,1.3301553,653.54,652.73,0.26642882]
[1751276981020,1.3301553,653.53,652.73,0.26642882]
[1751276981224,1.3301553,653.52,652.73,0.26642882]
[1751276981424,1.3301553,653.51,652.73,0.26642882]
[1751276981625,1.3301553,653.5,652.73,0.26642882]
[1751276981827,1.3301553,653.49,652.73,0.26642882]
[1751276982029,1.3301553,653.48,652.73,0.26642882]
[1751276982228,1.3301553,653.47,652.73,0.26642882]
[1751276982528,1.3301553,653.46,652.73,0.26642882]
[1751276982827,1.3301553,653.45,652.73,0.26642882]
[1751276983023,1.3301553,653.44,652.73,0.26642882]
[1751276983228,1.3301553,653.43,652.73,0.26642882]
[1751276983524,1.3301553,653.42,652.73,0.26642882]
[1751276983723,1.3301553,653.41,652.73,0.26642882]
[1751276983925,1.3301553,653.4,652.73,0.26642882]
[1751276984228,1.3301553,653.39,652.73,0.26642882]
[1751276984425,1.3301553,653.38,652.73,0.26642882]
[1751276984624,1.3301553,653.37,652.73,0.26642882]
[1751276984826,1.3301553,653.36,652.73,0.26642882]
[1751276985024,1.3301553,653.35,652.73,0.26642882]
[1751276985224,1.3301553,653.34,652.73,0.26642882]
[1751276985428,1.3301553,653.33,652.73,0.26642882]
[1751276985628,1.3301553,653.32,652.73,0.26642882]
[1751276985925,1.3301553,653.31,652.73,0.26642882]
[1751276986129,1.3301553,653.3,652.73,0.26642882]
[1751276986326,1.3301553,653.29,652.73,0.26642882]
[1751276986526,1.3301553,653.28,652.73,0.26642882]
[1751276986730,1.3301553,653.27,652.73,0.26642882]
[1751276987028,1.3301553,653.26,652.73,0.26642882]
[1751276987226,1.3301553,653.25,652.73,0.26642882]
[1751276987531,1.3301553,653.24,652.73,0.26642882]
[1751276987726,1.3301553,653.23,652.73,0.26642882]
[1751276987928,1.3301553,653.22,652.73,0.26642882]
[1751276988129,1.3301553,653.21,652.73,0.26642882]
[1751276988329,1.3301553,653.2,652.73,0.26642882]
[1751276988528,1.3301553,653.19,652.73,0.26642882]
[1751276988727,1.3301553,653.18,652.73,0.26642882]
[1751276988931,1.3301553,653.17,652.73,0.26642882]
[1751276989231,1.5291855,653.58,652.73,0.26642882]
[1751276989431,1.3273036,653.57,652.73,0.26642882]
[1751276989630,1.3273036,653.56,652.73,0.26642882]
[1751276989830,1.3273036,653.55,652.73,0.26642882]
[1751276990129,1.5291855,653.58,652.73,0.26642882]
[1751276990332,1.3269883,653.57,652.73,0.26642882]
[1751276990630,1.3269883,653.56,652.73,0.26642882]
[1751276990827,1.3269883,653.55,652.73,0.26642882]
[1751276991026,1.3269883,653.54,652.73,0.26642882]
[1751276991228,1.3269883,653.53,652.73,0.26642882]
[1751276991426,1.3269883,653.52,652.73,0.26642882]
[1751276991629,1.3269883,653.51,652.73,0.26642882]
[1751276991932,1.3269883,653.5,652.73,0.26642882]
[1751276992229,1.3269883,653.49,652.73,0.26642882]
[1751276992432,1.3269883,653.48,652.73,0.26642882]
[1751276992732,1.3269883,653.47,652.73,0.26642882]
[1751276992926,1.3269883,653.46,652.73,0.26642882]
[1751276993227,1.3269883,653.45,652.73,0.26642882]
[1751276993531,1.3269883,653.44,652.73,0.26642882]
[1751276993732,1.3269883,653.43,652.73,0.26642882]
[1751276993928,1.3269883,653.42,652.73,0.26642882]
[1751276994131,1.3269883,653.41,652.73,0.26642882]
[1751276994326,1.3269883,653.4,652.73,0.26642882]
[1751276994530,1.3269883,653.39,652.73,0.26642882]
[1751276994727,1.3269883,653.38,652.73,0.26642882]
[1751276995027,1.3269883,653.37,652.73,0.26642882]
[1751276995230,1.3269883,653.36,652.73,0.26642882]
[1751276995429,1.3269883,653.35,652.73,0.26642882]
[1751276995630,1.3269883,653.34,652.73,0.26642882]
[1751276995830,1.3269883,653.33,652.73,0.26642882]
[1751276996029,1.3269883,653.32,652.73,0.26642882]
[1751276996233,1.3269883,653.31,652.73,0.26642882]
[1751276996530,1.3269883,653.3,652.73,0.26642882]
[1751276996730,1.3269883,653.29,652.73,0.26642882]
[1751276996932,1.3269883,653.28,652.73,0.26642882]
[1751276997136,1.3269883,653.27,652.73,0.26642882]
[1751276997435,1.3269883,653.26,652.73,0.26642882]
[1751276997732,1.3269883,653.25,652.73,0.26642882]
[1751276997936,1.3269883,653.24,652.73,0.26642882]
[1751276998136,1.3269883,653.23,652.73,0.26642882]
[1751276998331,1.3269883,653.22,652.73,0.26642882]
[1751276998535,1.3269883,653.21,652.73,0.26642882]
[1751276998739,1.3269883,653.2,652.73,0.26642882]
[1751276998934,1.3269883,653.19,652.73,0.26642882]
[1751276999134,1.3269883,653.18,652.73,0.26642882]
[1751276999335,1.5291855,653.56,652.73,0.26642882]
[1751276999539,1.3261173,653.55,652.61,1.1467066]
[1751276999738,1.3261173,653.54,652.61,1.1467066]
[1751277000038,1.3261173,653.53,652.62,1.1467066]
[1751277000234,1.3261173,653.52,652.62,1.1467066]
[1751277000438,1.3261173,653.51,652.62,1.1467066]
[1751277000734,1.3261173,653.5,652.62,1.1467066]
[1751277000936,1.3261173,653.49,652.62,1.1467066]
[1751277001140,1.3261173,653.48,652.62,1.1467066]
[1751277001339,1.3261173,653.47,652.6,1.1467066]
[1751277001539,1.3261173,653.46,652.61,1.1467066]
[1751277001737,1.5291855,653.54,652.61,1.1467066]
[1751277002040,1.326062,653.53,652.61,1.1467066]
[1751277002239,1.326062,653.52,652.61,1.1467066]
[1751277002437,1.326062,653.51,652.61,1.1467066]
[1751277002737,1.326062,653.5,652.61,1.1467066]
[1751277002941,1.326062,653.49,652.61,1.1467066]
[1751277003240,1.326062,653.48,652.61,1.1467066]
[1751277003537,1.326062,653.47,652.58,1.1467066]
[1751277003839,0.26645024,653.44,652.71,0.26645024]
[1751277004037,1.326062,653.43,652.71,0.26645024]
[1751277004238,1.326062,653.42,652.71,0.26645024]
[1751277004439,1.326062,653.41,652.71,0.26645024]
[1751277004643,1.326062,653.4,652.71,0.26645024]
[1751277004838,1.326062,653.39,652.71,0.26645024]
[1751277005042,1.326062,653.38,652.71,0.26645024]
[1751277005242,1.326062,653.37,652.71,0.26645024]
[1751277005441,1.326062,653.36,652.71,0.26645024]
[1751277005639,1.326062,653.35,652.71,0.26645024]
[1751277005940,1.326062,653.34,652.71,0.26645024]
[1751277006137,1.326062,653.33,652.71,0.26645024]
[1751277006341,1.326062,653.32,652.71,0.26645024]
[1751277006540,1.326062,653.31,652.71,0.26645024]
[1751277006741,1.326062,653.3,652.71,0.26645024]
[1751277006941,1.326062,653.29,652.71,0.26645024]
[1751277007140,1.326062,653.28,652.71,0.26645024]
[1751277007340,1.326062,653.27,652.71,0.26645024]
[1751277007542,1.326062,653.43,652.71,0.26645024]
[1751277007741,0.26645432,653.58,652.71,0.26645024]
[1751277008042,1.326062,653.57,652.71,0.26645024]
[1751277008240,1.326062,653.56,652.71,0.26645024]
[1751277008448,1.326062,653.55,652.71,0.26645024]
[1751277008642,1.326062,653.54,652.71,0.26645024]
[1751277008841,1.326062,653.53,652.71,0.26645024]
[1751277009045,1.326062,653.52,652.71,0.26645024]
[1751277009245,1.326062,653.51,652.71,0.26645024]
[1751277009443,1.326062,653.5,652.71,0.26645024]
[1751277009739,1.326062,653.49,652.71,0.26645024]
[1751277010042,1.326062,653.48,652.71,0.26645024]
[1751277010342,1.326062,653.47,652.71,0.26645024]
[1751277010542,1.326062,653.46,652.71,0.26645024]
[1751277010842,1.326062,653.45,652.71,0.26645024]
[1751277011040,1.326062,653.44,652.71,0.26645024]
[1751277011240,1.326062,653.43,652.71,0.26645024]
[1751277011441,1.326062,653.42,652.71,0.26645024]
[1751277011641,0.26645432,653.58,652.71,0.26645024]
[1751277011642,1.326062,653.41,652.71,0.26645024]
[1751277011846,1.326062,653.4,652.71,0.26645024]
[1751277012044,1.326062,653.39,652.71,0.26645024]
[1751277012242,1.326062,653.38,652.71,0.26645024]
[1751277012446,1.326062,653.37,652.71,0.26645024]
[1751277012647,1.326062,653.36,652.71,0.26645024]
[1751277012946,0.26645432,653.58,652.71,0.26645024]
[1751277013144,1.326033,653.57,652.71,0.26645024]
[1751277013344,1.326033,653.56,652.71,0.26645024]
[1751277013550,1.326033,653.55,652.71,0.26645024]
[1751277013751,1.326033,653.54,652.71,0.26645024]
[1751277013948,1.326033,653.53,652.71,0.26645024]
[1751277014151,1.326033,653.52,652.71,0.26645024]
[1751277014348,1.326033,653.51,652.71,0.26645024]
[1751277014545,1.326033,653.5,652.71,0.26645024]
[1751277014746,1.326033,653.49,652.71,0.26645024]
[1751277015046,1.326033,653.48,652.71,0.26645024]
[1751277015347,1.326033,653.47,652.71,0.26645024]
[1751277015550,1.326033,653.46,652.71,0.26645024]
[1751277015751,1.326033,653.45,652.71,0.26645024]
[1751277015951,1.326033,653.44,652.71,0.26645024]
[1751277016147,1.326033,653.43,652.71,0.26645024]
[1751277016351,1.326033,653.42,652.71,0.26645024]
[1751277016648,1.326033,653.41,652.71,0.26645024]
[1751277016851,1.326033,653.4,652.71,0.26645024]
[1751277017051,1.326033,653.39,652.71,0.26645024]
[1751277017247,1.326033,653.38,652.71,0.26645024]
[1751277017551,0.26645432,653.58,652.71,0.26645024]
[1751277017552,1.326033,653.37,652.71,0.26645024]
[1751277017748,1.326033,653.36,652.71,0.26645024]
[1751277017952,1.326033,653.35,652.71,0.26645024]
[1751277018153,1.326033,653.34,652.71,0.26645024]
[1751277018353,1.326033,653.33,652.71,0.26645024]
[1751277018555,1.326033,653.32,652.71,0.26645024]
[1751277018753,1.326033,653.31,652.71,0.26645024]
[1751277018950,1.326033,653.3,652.71,0.26645024]
[1751277019152,1.326033,653.29,652.71,0.26645024]
[1751277019358,1.326033,653.28,652.71,0.26645024]
[1751277019552,1.326033,653.27,652.71,0.26645024]
[1751277019754,1.326033,653.26,652.71,0.26645024]
[1751277019957,1.326033,653.25,652.71,0.26645024]
[1751277020254,1.326033,653.24,652.71,0.26645024]
[1751277020454,1.326033,653.23,652.71,0.26645024]
[1751277020653,1.326033,653.22,652.71,0.26645024]
[1751277020858,0.26645432,653.58,652.71,0.26645024]
[1751277021058,2.8554024,653.57,652.71,0.26645024]
[1751277021355,2.8554024,653.56,652.71,0.26645024]
[1751277021655,1.3262169,653.55,652.71,0.26645024]
[1751277021854,1.3262169,653.54,652.71,0.26645024]
[1751277022053,1.3262169,653.53,652.71,0.26645024]
[1751277022357,1.3262169,653.52,652.71,0.26645024]
[1751277022557,2.8554024,653.51,652.71,0.26645024]
[1751277022758,1.3262169,653.5,652.71,0.26645024]
[1751277022960,1.3262169,653.49,652.71,0.26645024]
[1751277023256,1.3262169,653.48,652.71,0.26645024]
[1751277023454,1.3262169,653.47,652.71,0.26645024]
[1751277023753,1.3262169,653.46,652.71,0.26645024]
[1751277023954,1.3262169,653.45,652.71,0.26645024]
[1751277024155,1.3262169,653.44,652.71,0.26645024]
[1751277024358,1.3262169,653.43,652.71,0.26645024]
[1751277024555,1.3262169,653.42,652.71,0.26645024]
[1751277024759,1.3262169,653.41,652.71,0.26645024]
[1751277025059,1.3262169,653.4,652.71,0.26645024]
[1751277025258,1.3262169,653.39,652.71,0.26645024]
[1751277025454,1.3262169,653.38,652.71,0.26645024]
[1751277025659,1.3262169,653.37,652.71,0.26645024]
[1751277025957,1.3262169,653.36,652.71,0.26645024]
[1751277026155,1.3262169,653.35,652.71,0.26645024]
[1751277026359,1.3262169,653.34,652.71,0.26645024]
[1751277026558,1.3262169,653.33,652.71,0.26645024]
[1751277026760,1.5291855,653.53,652.71,0.26645024]
[1751277026761,1.3262169,653.32,652.71,0.26645024]
[1751277026958,1.3262169,653.31,652.71,0.26645024]
[1751277027156,1.3262169,653.3,652.71,0.26645024]
[1751277027358,1.3262169,653.29,652.71,0.26645024]
[1751277027557,1.3262169,653.28,652.71,0.26645024]
[1751277027858,1.3262169,653.27,652.71,0.26645024]
[1751277028056,1.3262169,653.26,652.71,0.26645024]
[1751277028259,1.3262169,653.25,652.71,0.26645024]
[1751277028457,1.3262169,653.24,652.71,0.26645024]
[1751277028661,1.3262169,653.23,652.71,0.26645024]
[1751277028859,1.3262169,653.22,652.71,0.26645024]
[1751277029058,1.3262169,653.21,652.71,0.26645024]
[1751277029362,1.3262169,653.2,652.71,0.26645024]
[1751277029559,1.3262169,653.19,652.71,0.26645024]
[1751277029857,1.3262169,653.18,652.71,0.26645024]
[1751277030059,0.26645432,653.58,652.71,0.26645024]
[1751277030263,1.3274013,653.57,652.71,0.26645024]
[1751277030460,1.3274013,653.56,652.71,0.26645024]
[1751277030665,1.3274013,653.55,652.71,0.26645024]
[1751277030861,1.3274013,653.54,652.71,0.26645024]
[1751277031062,1.3274013,653.53,652.71,0.26645024]
[1751277031261,1.3274013,653.52,652.71,0.26645024]
[1751277031464,1.3274013,653.51,652.71,0.26645024]
[1751277031662,1.3274013,653.5,652.71,0.26645024]
[1751277031865,1.3274013,653.49,652.71,0.26645024]
[1751277032161,1.3274013,653.48,652.71,0.26645024]
[1751277032362,1.3274013,653.47,652.71,0.26645024]
[1751277032564,1.3274013,653.46,652.71,0.26645024]
[1751277032764,0.26645432,653.58,652.71,0.26645024]
[1751277032765,1.3274013,653.45,652.71,0.26645024]
[1751277032961,1.3274013,653.44,652.71,0.26645024]
[1751277033164,1.3274013,653.43,652.71,0.26645024]
[1751277033365,1.3274013,653.42,652.71,0.26645024]
[1751277033566,1.3274013,653.41,652.71,0.26645024]
[1751277033765,1.3274013,653.4,652.71,0.26645024]
[1751277033967,1.3274013,653.39,652.71,0.26645024]
[1751277034167,1.3274013,653.38,652.71,0.26645024]
[1751277034467,1.3287923,653.37,652.71,0.26645024]
[1751277034674,1.3287923,653.36,652.71,0.26645024]
[1751277034872,1.3287923,653.35,652.71,0.26645024]
[1751277035072,1.3287923,653.34,652.71,0.26645024]
[1751277035273,1.3287923,653.33,652.71,0.26645024]
[1751277035474,1.3287923,653.32,652.71,0.26645024]
[1751277035770,1.3287923,653.31,652.71,0.26645024]
[1751277036070,1.3287923,653.3,652.72,1.1446816]
[1751277036274,1.3287923,653.29,652.72,1.1446816]
[1751277036471,1.3287923,653.28,652.72,1.1446816]
[1751277036769,1.3287923,653.27,652.72,1.1446816]
[1751277036976,1.3287923,653.26,652.77,1.1446816]
[1751277037270,1.3287923,653.25,652.78,1.1446816]
[1751277037470,1.5291855,653.55,652.78,1.1446816]
[1751277037670,1.3286135,653.54,652.78,1.1446816]
[1751277037874,1.3286135,653.53,652.78,1.1446816]
[1751277038073,1.3286135,653.52,652.78,1.1446816]
[1751277038369,1.3286135,653.51,652.78,1.1446816]
[1751277038574,1.3286135,653.5,652.8,1.1446816]
[1751277038776,1.3286135,653.49,652.8,1.1446816]
[1751277038970,1.3286135,653.48,652.8,1.1446816]
[1751277039176,1.3286135,653.47,652.81,1.1446816]
[1751277039471,1.3286135,653.46,652.8,1.1446816]
[1751277039668,1.3286135,653.45,652.8,1.1446816]
[1751277039872,1.3286135,653.44,652.8,1.1446816]
[1751277040073,1.3286135,653.43,652.8,1.1446816]
[1751277040272,1.3286135,653.42,652.8,1.1446816]
[1751277040474,1.3286135,653.41,652.8,1.1446816]
[1751277040671,1.3286135,653.4,652.8,1.1446816]
[1751277040876,1.3286135,653.39,652.8,1.1446816]
[1751277041170,1.3286135,653.38,652.8,1.1446816]
[1751277041375,1.3286135,653.37,652.8,1.1446816]
[1751277041576,1.3286135,653.36,652.8,1.1446816]
[1751277041776,1.3286135,653.35,652.8,1.1446816]
[1751277042077,1.3286135,653.34,652.78,1.1446816]
[1751277042372,1.3286135,653.33,652.78,1.1446816]
[1751277042575,1.3286135,653.32,652.78,1.1446816]
[1751277042778,1.3286135,653.31,652.78,1.1446816]
[1751277042972,1.3286135,653.3,652.78,1.1446816]
[1751277043174,1.3286135,653.29,652.77,1.1446816]
[1751277043473,1.3286135,653.28,652.78,1.1446816]
[1751277043674,1.3286135,653.27,652.78,1.1446816]
[1751277043875,1.3286135,653.26,652.78,1.1446816]
[1751277044175,1.5291855,653.56,652.78,1.1446816]
[1751277044372,1.3283621,653.55,652.78,1.1446816]
[1751277044676,1.3283621,653.54,652.78,1.1446816]
[1751277044977,1.3283621,653.53,652.8,1.1446816]
[1751277045177,1.3283621,653.52,652.79,1.1446816]
[1751277045375,1.3283621,653.51,652.79,1.1446816]
[1751277045578,1.3283621,653.5,652.8,1.1446816]
[1751277045773,1.3283621,653.49,652.8,1.1446816]
[1751277045972,1.3283621,653.48,652.79,1.1446816]
[1751277046275,1.3283621,653.47,652.79,1.1446816]
[1751277046575,1.3283621,653.46,652.79,1.1446816]
[1751277046779,1.3283621,653.45,652.79,1.1446816]
[1751277046977,1.3283621,653.44,652.79,1.1446816]
[1751277047172,1.3283621,653.43,652.79,1.1446816]
[1751277047374,1.3283621,653.42,652.79,1.1446816]
[1751277047577,1.3283621,653.41,652.79,1.1446816]
[1751277047773,1.3283621,653.4,652.79,1.1446816]
[1751277047977,1.3283621,653.39,652.79,1.1446816]
[1751277048177,1.3283621,653.38,652.79,1.1446816]
[1751277048379,1.3283621,653.37,652.79,1.1446816]
[1751277048677,1.3283621,653.36,652.8,1.1446816]
[1751277048975,1.3283621,653.35,652.8,1.1446816]
[1751277049175,1.3283621,653.34,652.79,1.1446816]
[1751277049381,1.3283621,653.33,652.79,1.1446816]
[1751277049581,1.3283621,653.32,652.79,1.1446816]
[1751277049775,1.3283621,653.31,652.79,1.1446816]
[1751277049980,1.3283621,653.3,652.79,1.1446816]
[1751277050181,1.3283621,653.29,652.77,1.1446816]
[1751277050375,1.3283621,653.28,652.77,1.1446816]
[1751277050578,1.5291855,653.57,652.77,1.1446816]
[1751277050776,1.3276201,653.56,652.77,1.1446816]
[1751277050976,1.3276201,653.55,652.76,1.1446816]
[1751277051277,1.3276201,653.54,652.76,1.1446816]
[1751277051480,1.3276201,653.53,652.76,1.1446816]
[1751277051679,1.3276201,653.52,652.76,1.1446816]
[1751277051981,1.3276201,653.51,652.77,1.1446816]
[1751277052177,1.3276201,653.5,652.77,1.1446816]
[1751277052379,1.3276201,653.49,652.77,1.1446816]
[1751277052576,1.3276201,653.48,652.77,1.1446816]
[1751277052779,1.3276201,653.47,652.76,1.1446816]
[1751277052978,0.26645432,653.58,652.76,1.1446816]
[1751277052979,1.3276201,653.46,652.76,1.1446816]
[1751277053180,1.3276201,653.45,652.75,1.1446816]
[1751277053377,1.3276201,653.44,652.75,1.1446816]
[1751277053578,1.3276201,653.43,652.75,1.1446816]
[1751277053778,1.3276201,653.42,652.75,1.1446816]
[1751277053978,1.3276201,653.41,652.75,1.1446816]
[1751277054182,1.3276201,653.4,652.75,1.1446816]
[1751277054378,1.3276201,653.39,652.75,1.1446816]
[1751277054581,1.3276201,653.38,652.75,1.1446816]
[1751277054784,1.3276201,653.37,652.75,1.1446816]
[1751277055082,1.3276201,653.36,652.75,1.1446816]
[1751277055283,1.3276201,653.35,652.75,1.1446816]
[1751277055580,1.3276201,653.34,652.75,1.1446816]
[1751277055780,1.3276201,653.33,652.75,1.1446816]
[1751277056083,1.3276201,653.32,652.75,1.1446816]
[1751277056381,1.3276201,653.31,652.75,1.1446816]
[1751277056580,1.3276201,653.3,652.75,1.1446816]
[1751277056785,1.3276201,653.29,652.76,1.1446816]
[1751277056983,0.26645432,653.58,652.76,1.1446816]
[1751277057285,1.3274245,653.57,652.76,1.1446816]
[1751277057488,1.3274245,653.56,652.76,1.1446816]
[1751277057689,1.3274245,653.55,652.76,1.1446816]
[1751277057888,1.3274245,653.54,652.76,1.1446816]
[1751277058087,1.3274245,653.53,652.76,1.1446816]
[1751277058286,1.3274245,653.52,652.76,1.1446816]
[1751277058488,1.3274245,653.51,652.75,1.1446816]
[1751277058791,1.3274245,653.5,652.75,1.1446816]
[1751277058990,1.3274245,653.49,652.75,1.1446816]
[1751277059189,1.3274245,653.48,652.76,1.1446816]
[1751277059485,1.3274245,653.47,652.74,1.1446816]
[1751277059686,1.3274245,653.46,652.74,1.1446816]
[1751277059889,1.3274245,653.45,652.74,1.1446816]
[1751277060087,1.3274245,653.44,652.74,1.1446816]
[1751277060286,1.3274245,653.43,652.74,1.1446816]
[1751277060489,1.3274245,653.42,652.74,1.1446816]
[1751277060790,1.3274245,653.41,652.75,1.1446816]
[1751277060991,1.3274245,653.4,652.75,1.1446816]
[1751277061190,1.3274245,653.39,652.75,1.1446816]
[1751277061490,1.3274245,653.38,652.75,1.1446816]
[1751277061689,1.3274245,653.37,652.73,1.1446816]
[1751277061890,1.3274245,653.36,652.74,1.1446816]
[1751277062087,1.3274245,653.35,652.74,1.1446816]
[1751277062283,1.3274245,653.34,652.74,1.1446816]
[1751277062487,1.3274245,653.33,652.74,1.1446816]
[1751277062688,1.3274245,653.32,652.74,1.1446816]
[1751277063090,0.26645432,653.58,652.74,1.1446816]
[1751277063389,0.26645432,653.58,652.73,1.1446816]
[1751277063586,0.26645432,653.58,652.72,1.1446816]
[1751277067791,0.26645432,653.58,652.73,1.1446816]
[1751277069292,0.26645432,653.58,652.74,1.1446816]
[1751277069493,0.26645432,653.58,652.73,1.1446816]
[1751277069995,0.26645432,653.58,652.71,0.26645024]
[1751277069996,0.26645432,653.58,652.74,1.1446816]
[1751277070195,0.26645432,653.58,652.72,1.1446816]
[1751277070496,0.26645432,653.58,652.71,1.41113184]
[1751277070996,0.26645432,653.58,652.72,1.1446816]
[1751277071692,0.26645432,653.58,652.73,1.1446816]
[1751277072498,0.26645432,653.58,652.74,1.1446816]
[1751277072998,1.3275634,653.57,652.74,1.1446816]
[1751277073299,1.3275634,653.56,652.71,1.41113184]
[1751277073500,1.3275634,653.55,652.72,1.1446816]
[1751277073799,1.3275634,653.54,652.73,1.1446816]
[1751277073995,1.3275634,653.53,652.73,1.1446816]
[1751277074196,1.3275634,653.52,652.74,1.1446816]
[1751277074396,0.26645432,653.58,652.74,1.1446816]
[1751277074397,1.3275634,653.51,652.74,1.1446816]
[1751277074694,1.3275634,653.5,652.74,1.1446816]
[1751277074896,1.3275634,653.49,652.74,1.1446816]
[1751277075096,1.3275634,653.48,652.74,1.1446816]
[1751277075299,1.3275634,653.47,652.74,1.1446816]
[1751277075498,1.3275634,653.46,652.74,1.1446816]
[1751277075697,1.3275634,653.45,652.74,1.1446816]
[1751277075900,1.3275634,653.44,652.74,1.1446816]
[1751277076100,1.3275634,653.43,652.74,1.1446816]
[1751277076299,1.3275634,653.42,652.74,1.1446816]
[1751277076603,1.3275634,653.41,652.74,1.1446816]
[1751277076798,1.3275634,653.4,652.74,1.1446816]
[1751277076997,1.3275634,653.39,652.74,1.1446816]
[1751277077199,1.3275634,653.38,652.73,1.1446816]
[1751277077396,1.3275634,653.37,652.73,1.1446816]
[1751277077600,1.3275634,653.36,652.73,1.1446816]
[1751277077897,1.3275634,653.35,652.73,1.1446816]
[1751277078197,0.26645432,653.58,652.73,1.1446816]
[1751277078198,1.3275634,653.34,652.73,1.1446816]
[1751277078396,1.3275634,653.33,652.73,1.1446816]
[1751277078606,1.3275634,653.32,652.73,1.1446816]
[1751277078803,1.3275634,653.31,652.73,1.1446816]
[1751277079102,1.3275634,653.3,652.73,1.1446816]
[1751277079302,0.26645432,653.58,652.74,1.1446816]
[1751277079502,1.3282037,653.57,652.74,1.1446816]
[1751277079805,1.3282037,653.56,652.74,1.1446816]
[1751277080006,1.3282037,653.55,652.74,1.1446816]
[1751277080205,1.3282037,653.54,652.75,1.1446816]
[1751277080503,1.3282037,653.53,652.76,1.1446816]
[1751277080704,1.3282037,653.52,652.76,1.1446816]
[1751277080906,1.3282037,653.51,652.76,1.1446816]
[1751277081107,1.3282037,653.5,652.76,1.1446816]
[1751277081304,1.3282037,653.49,652.71,0.26645024]
[1751277081508,1.3282037,653.48,652.71,0.26645024]
[1751277081704,1.3282037,653.47,652.71,0.26645024]
[1751277081906,1.3282037,653.46,652.71,0.26645024]
[1751277082111,1.3282037,653.45,652.71,0.26645024]
[1751277082312,1.3282037,653.44,652.71,0.26645024]
[1751277082509,1.3282037,653.43,652.71,0.26645024]
[1751277082708,1.3282037,653.42,652.71,0.26645024]
[1751277082908,1.3282037,653.41,652.71,0.26645024]
[1751277083111,1.3282037,653.4,652.71,0.26645024]
[1751277083313,1.3282037,653.39,652.71,0.26645024]
[1751277083614,1.3282037,653.38,652.71,0.26645024]
[1751277083813,1.3282037,653.37,652.71,0.26645024]
[1751277084113,1.3282037,653.36,652.71,0.26645024]
[1751277084310,1.3282037,653.35,652.71,0.26645024]
[1751277084513,1.3282037,653.34,652.71,0.26645024]
[1751277084713,1.3282037,653.33,652.71,0.26645024]